[Event "36th Balaton Open A 2018"]
[Site "Balatonlelle"]
[Date "2018.06.18"]
[Round "7"]
[White "Boguszlavszkij, Jevgenyij"]
[Black "Chandratreya Prachiti"]
[Result "0-1"]
[ECO "A00"]
[WhiteElo "2170"]
[BlackElo "1729"]
[Annotator "NA"]
[PlyCount "102"]
[EventDate "2018.06.12"]
[EventType "swiss"]
[EventCountry "HUN"]
[SourceTitle "playchess.com"]
[Source "ChessBase"]
[SourceQuality "1"]
[TimeControl "40/5400+30:1800+30"]

1. g3 {[%emt 0:08:06]} Nf6 {[%emt 0:00:43]} 2. Bg2 {[%emt 0:00:05]} g6 {[%emt 0:00:40]} 3. e4 {[%emt 0:01:48]} d6 {[%emt 0:00:37]} 4. Ne2 {[%emt 0:00:26]} Bg7 {[%emt 0:00:10]} 5. O-O {[%emt 0:00:08]} O-O {[%emt 0:00:11]} 6. d4 {[%emt 0:00:46]} e5 {[%emt 0:04:57]} 7. c3 {[%emt 0:01:36]} Nc6 {[%emt 0:01:04] LiveBook: 20 Games} 8. d5 {[%emt 0:00:55] B06: Modern Defence} (8. Re1 Re8 9. d5 Ne7 10. a4 Nd7 11. Na3 f5 12. Nc4 Nf6 13. exf5 Nxf5 14. Bg5 Bh6 15. Bxh6 Nxh6 {½-½ (42) Efimov,I (2408)-McNab,C (2441) Tromsoe 2014}) 8... Ne7 {[%emt 0:02:53]} 9. h3 {[%emt 0:01:38]} Ne8 {[%emt 0:05:36]} 10. c4 $146 {[%emt 0:02:44]} ({Predecessor:} 10. Be3 f5 11. f3 Nf6 12. Nd2 Bd7 13. a4 a6 14. b4 Qc8 15. Kh2 Nh5 {0-1 (49) Gocza,B (1773)-Kassai,Z (2107) Hungary 2003}) 10... f5 {[%emt 0:02:04]} 11. Nbc3 {[%emt 0:00:20]} Nf6 {[%emt 0:03:15]} 12. Bd2 {[%emt 0:03:36]} fxe4 {[%emt 0:02:44]} 13. Kh2 {[%emt 0:01:28]} Bf5 {[%emt 0:09:39]} 14. Bg5 {[%emt 0:03:29]} h6 {[%emt 0:06:38]} 15. Bxf6 {[%emt 0:00:12]} Bxf6 {[%emt 0:00:15]} 16. Nxe4 {[%emt 0:00:17]} Bg7 {[%emt 0:00:58]} 17. N2c3 {[%emt 0:02:43]} b6 {[%emt 0:02:07]} 18. b4 {[%emt 0:01:52]} a5 {[%emt 0:01:29]} 19. a3 {[%emt 0:00:40]} axb4 {[%emt 0:02:02]} 20. axb4 {[%emt 0:00:07]} Kh8 {[%emt 0:00:34]} 21. Qd2 {[%emt 0:01:40]} Rxa1 {[%emt 0:07:01]} 22. Rxa1 {[%emt 0:00:07]} g5 {[%emt 0:02:56]} 23. Ra7 {[%emt 0:04:19]} Nc8 {[%emt 0:01:53]} 24. Ra8 {[%emt 0:02:38]} Qd7 {[%emt 0:00:37]} 25. Qe2 {[%emt 0:07:35]} Ne7 {[%emt 0:01:21]} 26. Ra7 {[%emt 0:00:47]} Nc8 {[%emt 0:00:36]} 27. Ra6 {[%emt 0:04:49]} Ne7 {[%emt 0:06:47]} 28. Nb5 {[%emt 0:01:13]} Nc8 {[%emt 0:06:00]} 29. Ra2 {[%emt 0:03:48]} Qd8 {[%emt 0:05:30]} 30. Ra8 {[%emt 0:04:45]} Qd7 {[%emt 0:01:14]} 31. g4 {[%emt 0:00:43]} Bh7 {[%emt 0:05:33]} 32. Ra2 {[%emt 0:01:58]} Qd8 {[%emt 0:01:16]} 33. Ng3 {[%emt 0:01:01]} e4 {[%emt 0:01:10]} 34. Bxe4 {[%emt 0:00:34]} Be5 {[%emt 0:00:58]} 35. Bxh7 {[%emt 0:01:00]} Kxh7 {[%emt 0:00:10]} 36. Kg2 {[%emt 0:00:22]} Bxg3 {[%emt 0:01:09]} 37. Kxg3 {[%emt 0:00:49]} Qd7 {[%emt 0:03:03]} 38. Qe4+ $18 {[%emt 0:01:49]} Kg7 {[%emt 0:00:41]} 39. Nd4 {[%emt 0:00:29]} Rh8 {[%emt 0:03:30]} 40. Ne6+ {[%emt 0:00:00]} Kf7 {[%emt 0:00:48]} 41. Qf5+ {[%emt 0:03:06]} Ke8 {[%emt 0:01:48]} 42. Qg6+ {[%emt 0:08:01]} Qf7 {[%emt 0:00:26]} 43. Nxc7+ {[%emt 0:00:12]} Kf8 {[%emt 0:00:22]} 44. Ne6+ {[%emt 0:00:14]} Ke7 {[%emt 0:00:41]} 45. Qxf7+ {[%emt 0:02:16]} Kxf7 {[%emt 0:00:08]} 46. Ra8 {[%emt 0:00:08]} Ke7 {[%emt 0:00:19]} 47. Rb8 {[%emt 0:00:43]} Kd7 {[%emt 0:00:33]} 48. h4 {[%emt 0:01:18]} gxh4+ {[%emt 0:00:20]} 49. Kxh4 {[%emt 0:00:08]} Rg8 {[%emt 0:00:13]} 50. f4 {[%emt 0:00:32]} Rg6 {[%emt 0:00:12]} 51. Nf8+ {[%emt 0:00:29]} Ke8 0-1

[Event "36th Balaton Open A 2018"]
[Site "Balatonlelle"]
[Date "2018.06.18"]
[Round "7"]
[White "Gaal, Ede"]
[Black "Radics, Laszlo Dr"]
[Result "1-0"]
[ECO "C65"]
[WhiteElo "2141"]
[BlackElo "1909"]
[Annotator "NA"]
[PlyCount "81"]
[EventDate "2018.06.12"]
[EventType "swiss"]
[EventCountry "HUN"]
[SourceTitle "playchess.com"]
[Source "ChessBase"]
[SourceQuality "1"]
[TimeControl "40/5400+30:1800+30"]

1. e4 {[%emt 0:00:06]} e5 {[%emt 0:01:00]} 2. Nf3 {[%emt 0:00:07]} Nc6 {[%emt 0:00:09]} 3. Bb5 {[%emt 0:00:15]} Bc5 {[%emt 0:00:29]} 4. O-O {[%emt 0:00:17]} Nf6 {[%emt 0:00:32]} 5. d3 {[%emt 0:02:48]} d6 {[%emt 0:00:44]} 6. h3 {[%emt 0:01:19]} a6 {[%emt 0:04:10]} 7. Bxc6+ {[%emt 0:04:45]} bxc6 {[%emt 0:01:27]} 8. Bg5 {[%emt 0:00:24]} h6 {[%emt 0:02:53]} 9. Be3 {[%emt 0:04:16]} Bb6 {[%emt 0:03:30]} 10. Nbd2 {[%emt 0:01:08]} Bxe3 {[%emt 0:00:47]} 11. fxe3 {[%emt 0:00:05]} c5 {[%emt 0:00:10]} 12. Rf2 {[%emt 0:00:33]} O-O {[%emt 0:01:21]} 13. Nf1 {[%emt 0:03:46]} Nh7 {[%emt 0:01:05]} 14. Ng3 $11 {[%emt 0:04:19]} f5 {[%emt 0:01:28]} 15. exf5 {[%emt 0:01:38]} Bxf5 {[%emt 0:00:08]} 16. Qe2 {[%emt 0:17:49]} Bd7 {[%emt 0:05:24]} 17. Raf1 {[%emt 0:01:16]} Ng5 {[%emt 0:02:19]} 18. Nxg5 {[%emt 0:05:24]} Qxg5 {[%emt 0:00:09]} 19. Rxf8+ {[%emt 0:00:26]} Rxf8 {[%emt 0:00:27]} 20. Rxf8+ {[%emt 0:00:06]} Kxf8 {[%emt 0:01:21]} 21. Qf3+ {[%emt 0:00:57]} Ke7 {[%emt 0:00:47]} 22. Kf2 {[%emt 0:03:45]} Qf6 {[%emt 0:05:08]} 23. e4 {[%emt 0:01:10]} g6 {[%emt 0:11:37]} 24. Qxf6+ {[%emt 0:01:14]} Kxf6 {[%emt 0:00:25]} 25. Nf1 {[%emt 0:02:07]} Be6 {[%emt 0:05:49]} 26. Ne3 {[%emt 0:03:22]} Bxa2 {[%emt 0:03:58]} 27. b3 {[%emt 0:00:17]} c6 {[%emt 0:00:14]} 28. Ke2 {[%emt 0:01:01]} Ke6 {[%emt 0:01:23]} 29. Kd2 {[%emt 0:00:16]} a5 {[%emt 0:00:39]} 30. Kc3 {[%emt 0:00:37]} a4 {[%emt 0:01:20]} 31. Kb2 {[%emt 0:01:40]} axb3 {[%emt 0:00:52]} 32. cxb3 {[%emt 0:00:07]} Bxb3 {[%emt 0:00:56]} 33. Kxb3 {[%emt 0:00:09]} d5 {[%emt 0:00:26]} 34. g4 {[%emt 0:01:20]} Kf6 {[%emt 0:01:22]} 35. h4 {[%emt 0:03:08]} Ke6 {[%emt 0:01:05]} 36. Ka4 {[%emt 0:01:38]} Kd6 {[%emt 0:00:17]} 37. h5 {[%emt 0:01:31]} gxh5 {[%emt 0:01:07]} 38. gxh5 {[%emt 0:02:23]} c4 {[%emt 0:00:19]} 39. dxc4 {[%emt 0:01:10]} d4 {[%emt 0:00:18]} 40. Nf5+ {[%emt 0:00:00]} Kc5 {[%emt 0:00:22]} 41. Kb3 {[%emt 0:01:10]} 1-0

[Event "36th Balaton Open A 2018"]
[Site "Balatonlelle"]
[Date "2018.06.18"]
[Round "7"]
[White "Leszko, Bence"]
[Black "Bernath, Bence"]
[Result "0-1"]
[ECO "A05"]
[WhiteElo "2096"]
[BlackElo "1758"]
[Annotator "NA"]
[PlyCount "86"]
[EventDate "2018.06.12"]
[EventType "swiss"]
[EventCountry "HUN"]
[SourceTitle "playchess.com"]
[Source "ChessBase"]
[SourceQuality "1"]
[TimeControl "40/5400+30:1800+30"]

1. Nf3 {[%emt 0:00:40]} Nf6 {[%emt 0:01:05]} 2. g3 {[%emt 0:00:08]} g6 {[%emt 0:00:34]} 3. Bg2 {[%emt 0:00:05]} Bg7 {[%emt 0:00:24]} 4. O-O {[%emt 0:00:15]} O-O {[%emt 0:00:28]} 5. d4 {[%emt 0:00:07]} d6 {[%emt 0:00:40]} 6. Re1 {[%emt 0:00:34]} Nbd7 {[%emt 0:00:51]} 7. e4 {[%emt 0:00:50]} e5 {[%emt 0:00:33]} 8. c3 {[%emt 0:02:58]} Re8 {[%emt 0:02:42]} 9. Qc2 {[%emt 0:01:05]} Nf8 {[%emt 0:03:49]} 10. Nbd2 {[%emt 0:02:55]} h5 {[%emt 0:02:55]} 11. dxe5 {[%emt 0:02:57]} dxe5 {[%emt 0:00:32]} 12. Nc4 {[%emt 0:00:12]} N6d7 {[%emt 0:01:11]} 13. Rd1 {[%emt 0:02:04]} Nh7 {[%emt 0:01:18]} 14. a4 {[%emt 0:06:56]} Qe7 {[%emt 0:07:24]} 15. b3 {[%emt 0:00:49]} Nb6 {[%emt 0:02:53]} 16. Ba3 $14 Qf6 {[%emt 0:01:30]} 17. Ncd2 {[%emt 0:12:15]} Be6 {[%emt 0:22:46]} 18. a5 {[%emt 0:01:05]} Nd7 {[%emt 0:01:07]} 19. c4 {[%emt 0:04:46]} g5 {[%emt 0:07:06]} 20. h4 {[%emt 0:04:38]} Bg4 {[%emt 0:07:12]} 21. Re1 {[%emt 0:01:21]} Bh6 {[%emt 0:01:29]} 22. hxg5 {[%emt 0:00:52]} Nxg5 {[%emt 0:03:57]} 23. Nxg5 {[%emt 0:01:11]} Bxg5 {[%emt 0:01:49]} 24. Nf1 {[%emt 0:04:38]} Kg7 {[%emt 0:04:16]} 25. Nh2 {[%emt 0:01:13]} Be6 {[%emt 0:04:20]} 26. Nf3 Bg4 {[%emt 0:01:33]} 27. Nxg5 {[%emt 0:05:41]} Qxg5 {[%emt 0:00:11]} 28. Bc1 {[%emt 0:02:06]} Qg6 {[%emt 0:00:31]} 29. f3 {[%emt 0:00:54]} Be6 {[%emt 0:00:31]} 30. Kf2 {[%emt 0:01:00]} f5 {[%emt 0:03:26]} 31. exf5 {[%emt 0:06:43]} Bxf5 {[%emt 0:00:17]} 32. Qc3 {[%emt 0:00:18]} Kg8 {[%emt 0:02:42]} 33. b4 {[%emt 0:01:29]} Re7 {[%emt 0:03:25]} 34. f4 Rae8 {[%emt 0:01:14]} 35. Bd5+ {[%emt 0:10:18]} Kh7 {[%emt 0:00:47]} 36. Bb2 {[%emt 0:00:43]} Nf6 {[%emt 0:01:08]} 37. Bf3 {[%emt 0:04:04]} Ne4+ {[%emt 0:02:41]} 38. Bxe4 {[%emt 0:00:22]} Bxe4 {[%emt 0:00:06]} 39. Rad1 {[%emt 0:07:02]} exf4 {[%emt 0:01:17]} 40. g4 {[%emt 0:00:00]} Qxg4 {[%emt 0:04:04]} 41. Rg1 {[%emt 0:07:38]} Bg2 {[%emt 0:05:13]} 42. Qd3+ {[%emt 0:03:01]} Kh6 {[%emt 0:02:57]} 43. Rd2 {[%emt 0:03:10]} Re2+ {[%emt 0:00:11] Bc1} 0-1

[Event "36th Balaton Open A 2018"]
[Site "Balatonlelle"]
[Date "2018.06.18"]
[Round "7"]
[White "Ananya Rishi Gupta"]
[Black "Kincs, Imre"]
[Result "1/2-1/2"]
[ECO "B06"]
[WhiteElo "1968"]
[BlackElo "2210"]
[Annotator "NA"]
[PlyCount "99"]
[EventDate "2018.06.12"]
[EventType "swiss"]
[EventCountry "HUN"]
[SourceTitle "playchess.com"]
[Source "ChessBase"]
[SourceQuality "1"]
[TimeControl "40/5400+30:1800+30"]

1. e4 {[%emt 0:00:04]} g6 {[%emt 0:10:54]} 2. d4 Bg7 {[%emt 0:00:03]} 3. Nf3 {[%emt 0:01:04]} d6 {[%emt 0:00:05]} 4. Nc3 {[%emt 0:00:54]} a6 {[%emt 0:01:30]} 5. a4 {[%emt 0:01:43]} Nc6 {[%emt 0:00:40] LiveBook: 36 Partien} 6. Be3 {[%emt 0:00:34]} Bg4 {[%emt 0:01:59]} 7. Be2 {[%emt 0:00:41]} e5 {[%emt 0:00:28]} 8. dxe5 {[%emt 0:04:58]} Bxf3 {[%emt 0:00:50]} 9. Bxf3 {[%emt 0:00:36]} Nxe5 {[%emt 0:01:11]} 10. Be2 {[%emt 0:00:36]} h5 {[%emt 0:01:25]} 11. Bd4 {[%emt 0:06:24]} Kf8 12. Bxe5 {[%emt 0:00:52]} Bxe5 {[%emt 0:00:19]} 13. Qd2 {[%emt 0:01:52]} g5 {[%emt 0:01:24]} 14. Bd3 {[%emt 0:09:10]} c6 {[%emt 0:01:57]} 15. Ne2 {[%emt 0:04:27]} Qf6 {[%emt 0:00:50]} 16. c3 {[%emt 0:01:10]} Ne7 {[%emt 0:01:17]} 17. Qe3 {[%emt 0:06:17]} Ng6 {[%emt 0:03:50]} 18. g3 {[%emt 0:05:03]} g4 {[%emt 0:02:22]} 19. Kd2 {[%emt 0:03:55]} Kg7 {[%emt 0:02:00]} 20. f4 {[%emt 0:05:26]} gxf3 {[%emt 0:00:07]} 21. Rhf1 {[%emt 0:00:29]} fxe2 {[%emt 0:04:27]} 22. Rxf6 {[%emt 0:00:36]} Bxf6 {[%emt 0:00:05]} 23. Qxe2 {[%emt 0:00:31]} Ne5 {[%emt 0:01:47]} 24. Rf1 {[%emt 0:01:09]} Bg5+ {[%emt 0:02:15]} 25. Kc2 {[%emt 0:00:59]} h4 {[%emt 0:00:43]} 26. g4 {[%emt 0:11:08]} b5 {[%emt 0:09:37]} 27. h3 {[%emt 0:03:21]} Rhe8 {[%emt 0:03:10]} 28. Qf2 {[%emt 0:03:49]} bxa4 {[%emt 0:25:04]} 29. Ra1 {[%emt 0:11:13]} Re6 {[%emt 0:02:51]} 30. Rxa4 {[%emt 0:00:39]} (30. Qd4 $16) 30... Rf6 {[%emt 0:00:22]} 31. Qd4 {[%emt 0:07:46]} c5 {[%emt 0:00:57]} 32. Qd5 {[%emt 0:00:54]} Rb8 {[%emt 0:00:22]} 33. Be2 {[%emt 0:00:58]} Rf2 {[%emt 0:03:57]} 34. Qd1 {[%emt 0:00:10]} a5 {[%emt 0:00:30]} 35. Kb1 {[%emt 0:01:18]} Rb6 {[%emt 0:03:16]} 36. Rxa5 {[%emt 0:05:14]} Nc4 {[%emt 0:00:01]} 37. Ra2 {[%emt 0:01:05]} Nd2+ {[%emt 0:00:01]} 38. Ka1 {[%emt 0:00:49]} Nxe4 {[%emt 0:01:24]} 39. Ra6 {[%emt 0:00:40]} Rxa6+ 40. Bxa6 {[%emt 0:00:00]} Bd2 {[%emt 0:03:50]} 41. Bc4 {[%emt 0:09:30]} Ng3 {[%emt 0:01:57]} 42. Qc2 {[%emt 0:02:01]} Nf1 {[%emt 0:04:43]} (42... Be3 {keeps fighting.} 43. Qd3 Bf4) 43. Bxf1 {[%emt 0:01:29]} Rxf1+ {[%emt 0:00:01]} 44. Ka2 {[%emt 0:00:10]} Bg5 {[%emt 0:01:39]} 45. Qd3 {[%emt 0:00:38]} Rf6 $18 {[%emt 0:00:46]} 46. Qd5 {[%emt 0:01:11]} Bf4 {[%emt 0:00:12]} 47. Qh5 {[%emt 0:02:09]} Bg3 {[%emt 0:00:14]} 48. Qg5+ {[%emt 0:00:09]} Rg6 {[%emt 0:00:08]} 49. Qf5 {[%emt 0:00:14]} Re6 {[%emt 0:00:21]} 50. Qg5+ {[%emt 0:00:17]} 1/2-1/2

[Event "36th Balaton Open A 2018"]
[Site "Balatonlelle"]
[Date "2018.06.18"]
[Round "7"]
[White "Tancsa, Tamas"]
[Black "Atkins, Rita"]
[Result "1-0"]
[ECO "C18"]
[WhiteElo "1965"]
[BlackElo "2071"]
[Annotator "NA"]
[PlyCount "39"]
[EventDate "2018.06.12"]
[EventType "swiss"]
[EventCountry "HUN"]
[SourceTitle "playchess.com"]
[Source "ChessBase"]
[SourceQuality "1"]
[TimeControl "40/5400+30:1800+30"]

1. e4 {[%emt 0:00:11]} e6 {[%emt 0:00:43]} 2. d4 {[%emt 0:00:16]} d5 {[%emt 0:00:03]} 3. Nc3 {[%emt 0:00:33]} Bb4 {[%emt 0:00:24]} 4. e5 {[%emt 0:00:19]} c5 {[%emt 0:00:13]} 5. a3 {[%emt 0:00:18]} Bxc3+ {[%emt 0:00:05]} 6. bxc3 {[%emt 0:00:34]} Ne7 {[%emt 0:00:19]} 7. Qg4 {[%emt 0:00:19]} O-O {[%emt 0:01:05]} 8. Bd3 {[%emt 0:00:20]} f5 {[%emt 0:00:47]} 9. exf6 {[%emt 0:00:27]} Rxf6 {[%emt 0:00:09]} 10. Bg5 {[%emt 0:00:56]} Rf7 {[%emt 0:00:33]} 11. Qh5 {[%emt 0:04:20]} g6 {[%emt 0:01:32]} 12. Qh4 {[%emt 0:08:20]} Qa5 {[%emt 0:10:04]} 13. Bxe7 {[%emt 0:22:16]} Qxc3+ {[%emt 0:00:40]} 14. Ke2 {[%emt 0:00:12]} Qxa1 {[%emt 0:01:32]} 15. Nf3 $17 {[%emt 0:01:11]} Qxh1 {[%emt 0:19:30]} 16. Ne5 {[%emt 0:00:36]} Rg7 {[%emt 0:04:24]} 17. Bf6 {[%emt 0:00:42]} Nc6 {[%emt 0:10:53]} 18. Qh6 {[%emt 0:01:35]} Nxd4+ {[%emt 0:06:02]} 19. Kd2 {[%emt 0:00:32]} Rc7 {[%emt 0:09:16]} 20. Nxg6 {[%emt 0:00:12]} 1-0

[Event "36th Balaton Open A 2018"]
[Site "Balatonlelle"]
[Date "2018.06.19"]
[Round "8"]
[White "Terbe, Julianna"]
[Black "Tancsa, Tamas"]
[Result "1-0"]
[ECO "C74"]
[WhiteElo "2242"]
[BlackElo "1965"]
[Annotator "NA"]
[PlyCount "165"]
[EventDate "2018.06.12"]
[EventType "swiss"]
[EventCountry "HUN"]
[SourceTitle "playchess.com"]
[Source "ChessBase"]
[SourceQuality "1"]
[TimeControl "40/5400+30:1800+30"]

1. e4 {[%emt 0:00:03]} e5 {[%emt 0:00:57]} 2. Nf3 {[%emt 0:00:06]} Nc6 {[%emt 0:00:37]} 3. Bb5 {[%emt 0:00:03]} a6 {[%emt 0:00:38]} 4. Ba4 {[%emt 0:00:06]} d6 {[%emt 0:00:30]} 5. c3 {[%emt 0:00:36]} f5 {[%emt 0:00:30]} 6. exf5 {[%emt 0:00:30]} Bxf5 {[%emt 0:00:24]} 7. O-O {[%emt 0:00:07]} Bd3 {[%emt 0:00:23] C74: Spanische Partie (Moderne Steinitz-Verteidigung)} 8. Qb3 {[%emt 0:00:06]} (8. Re1 Be7 9. Bc2 Bxc2 10. Qxc2 Nf6 11. Ng5 Qd7 12. d4 exd4 13. Ne6 Ne5 14. Nxg7+ Kf7 15. Nf5 Rag8 16. Qb3+ Ke8 17. cxd4 Qxf5 18. dxe5 Ng4 19. Re2 Nxe5 20. Qxb7 {0-1 (48) Neiksans,A (2582)-Fressinet,L (2662) chess.com INT 2018}) 8... b5 {[%emt 0:01:12]} 9. Qd5 {[%emt 0:00:12]} Nd4 {[%emt 0:00:52]} 10. cxd4 {[%emt 0:00:13]} Ne7 {[%emt 0:00:29]} 11. Qe6 {[%emt 0:00:42]} Bxf1 {[%emt 0:02:56]} 12. Bb3 {[%emt 0:00:38]} Bc4 {[%emt 0:00:37]} 13. Bxc4 {[%emt 0:00:03]} bxc4 {[%emt 0:00:15]} 14. dxe5 {[%emt 0:00:04]} Qd7 {[%emt 0:00:57]} 15. Qxc4 {[%emt 0:00:37]} Qc6 $146 {[%emt 0:02:43]} 16. Qf1 {[%emt 0:00:12]} Ng6 {[%emt 0:00:49]} 17. d4 {[%emt 0:10:13]} dxe5 {[%emt 0:00:23]} 18. dxe5 {[%emt 0:00:05]} Bc5 {[%emt 0:00:16]} 19. Nc3 {[%emt 0:00:49]} Bb6 {[%emt 0:02:05]} 20. Qe2 {[%emt 0:13:28]} O-O {[%emt 0:01:37]} 21. Be3 {[%emt 0:00:08]} Rae8 {[%emt 0:10:09]} 22. Bxb6 {[%emt 0:02:11]} Qxb6 {[%emt 0:00:11]} 23. Qc4+ {[%emt 0:06:31]} Kh8 {[%emt 0:00:27]} 24. Na4 {[%emt 0:02:03]} Qb5 {[%emt 0:01:49]} 25. Qxb5 $15 {[%emt 0:00:52]} axb5 {[%emt 0:00:01]} 26. Nc5 {[%emt 0:00:08]} Rf5 27. Nd7 {[%emt 0:05:33]} Rf7 {[%emt 0:12:51]} 28. e6 {[%emt 0:08:15]} Rfe7 {[%emt 0:01:02]} 29. Nd4 {[%emt 0:04:10]} Nf8 {[%emt 0:06:12]} 30. Nc5 {[%emt 0:00:28]} Nxe6 {[%emt 0:16:59]} 31. Ndxe6 {[%emt 0:00:17]} Rxe6 {[%emt 0:00:12]} 32. Nxe6 {[%emt 0:00:04]} Rxe6 {[%emt 0:00:11]} 33. Kf1 {[%emt 0:00:22]} Rc6 {[%emt 0:00:20]} 34. Rd1 {[%emt 0:00:31]} Kg8 {[%emt 0:00:07]} 35. Ke2 {[%emt 0:00:05]} Kf7 {[%emt 0:00:28]} 36. f4 {[%emt 0:01:00]} Kf6 {[%emt 0:00:55]} 37. g4 {[%emt 0:00:20]} g5 {[%emt 0:14:07]} 38. fxg5+ {[%emt 0:10:33]} Kxg5 {[%emt 0:00:13]} 39. Kf3 {[%emt 0:00:16]} b4 {[%emt 0:04:52]} 40. Rd4 {[%emt 0:00:00]} b3 {[%emt 0:00:59]} 41. axb3 {[%emt 0:03:18]} Rc2 {[%emt 0:00:27]} 42. h4+ {[%emt 0:00:14]} Kf6 {[%emt 0:09:11]} 43. Rf4+ {[%emt 0:01:03]} Ke6 {[%emt 0:01:14]} 44. Re4+ {[%emt 0:00:26]} Kd5 {[%emt 0:04:22]} 45. Re7 {[%emt 0:04:04]} h6 {[%emt 0:03:13]} 46. Rh7 {[%emt 0:03:20]} Rxb2 {[%emt 0:01:48]} 47. Rxh6 {[%emt 0:00:05]} Ke5 {[%emt 0:00:48]} 48. Rh5+ {[%emt 0:00:40]} Kf6 {[%emt 0:00:44]} 49. Rb5 {[%emt 0:00:25]} Rd2 {[%emt 0:02:37]} 50. h5 {[%emt 0:01:01]} Rd3+ {[%emt 0:03:05]} 51. Kf4 {[%emt 0:00:06]} Rd4+ {[%emt 0:00:22]} 52. Kg3 {[%emt 0:00:04]} c6 {[%emt 0:00:28]} 53. Rf5+ {[%emt 0:00:20]} Kg7 {[%emt 0:00:29]} 54. Kh4 {[%emt 0:00:08]} Rb4 {[%emt 0:05:54]} 55. Rc5 {[%emt 0:01:21]} Rxb3 {[%emt 0:00:21]} 56. Rxc6 {[%emt 0:00:06]} Rb4 {[%emt 0:00:40]} 57. Rg6+ {[%emt 0:00:04]} Kh7 {[%emt 0:00:22]} 58. Rg5 {[%emt 0:00:54]} Kh6 {[%emt 0:00:27]} 59. Re5 {[%emt 0:00:26]} Ra4 {[%emt 0:00:12]} 60. Re6+ {[%emt 0:00:12]} Kh7 {[%emt 0:00:17]} 61. Kg5 {[%emt 0:00:39]} Ra1 {[%emt 0:00:38]} 62. Re5 {[%emt 0:00:59]} Ra6 {[%emt 0:00:15]} 63. Re7+ {[%emt 0:01:33]} Kg8 {[%emt 0:00:10]} 64. h6 {[%emt 0:00:12]} Ra5+ {[%emt 0:02:38]} 65. Kg6 {[%emt 0:00:12]} Ra6+ {[%emt 0:00:17]} 66. Kh5 {[%emt 0:00:04]} Ra5+ {[%emt 0:01:00]} 67. g5 {[%emt 0:00:05]} Rb5 {[%emt 0:00:12]} 68. Kg4 {[%emt 0:00:26]} Rb6 {[%emt 0:00:16]} 69. Kf5 {[%emt 0:00:07]} Rb1 {[%emt 0:03:38]} 70. g6 {[%emt 0:07:37]} Rf1+ {[%emt 0:00:04]} 71. Ke6 {[%emt 0:00:04]} Re1+ {[%emt 0:00:12]} 72. Kd6 {[%emt 0:01:07]} Rd1+ {[%emt 0:00:04]} 73. Kc5 {[%emt 0:00:07]} Rc1+ {[%emt 0:00:02]} 74. Kd4 {[%emt 0:00:05]} Rd1+ {[%emt 0:00:02]} 75. Kc3 {[%emt 0:00:04]} Rc1+ {[%emt 0:00:03]} 76. Kd2 {[%emt 0:00:04]} Rc8 {[%emt 0:00:07]} 77. Ke3 {[%emt 0:00:46]} Ra8 {[%emt 0:00:29]} 78. Kf4 {[%emt 0:00:35]} Rb8 {[%emt 0:00:13]} 79. Re5 {[%emt 0:00:01]} Kh8 {[%emt 0:02:54]} 80. Kg5 {[%emt 0:00:09]} Rg8 {[%emt 0:01:42]} 81. Kh5 {[%emt 0:00:19]} Ra8 {[%emt 0:02:14]} 82. h7 {[%emt 0:00:39]} Rb8 {[%emt 0:01:08]} 83. Kh6 {[%emt 0:00:06]} 1-0

[Event "36th Balaton Open A 2018"]
[Site "Balatonlelle"]
[Date "2018.06.19"]
[Round "8"]
[White "Suta, Andraz"]
[Black "Nagy, Daniel"]
[Result "0-1"]
[ECO "B90"]
[WhiteElo "2239"]
[BlackElo "2312"]
[Annotator "NA"]
[PlyCount "134"]
[EventDate "2018.06.12"]
[EventType "swiss"]
[EventCountry "HUN"]
[SourceTitle "playchess.com"]
[Source "ChessBase"]
[SourceQuality "1"]
[TimeControl "40/5400+30:1800+30"]

1. e4 {[%emt 0:00:05]} c5 {[%emt 0:00:37]} 2. Nf3 {[%emt 0:00:04]} d6 {[%emt 0:00:06]} 3. d4 {[%emt 0:00:04]} cxd4 {[%emt 0:00:05]} 4. Nxd4 {[%emt 0:00:01]} Nf6 {[%emt 0:00:13]} 5. Nc3 {[%emt 0:00:06]} a6 {[%emt 0:00:05]} 6. Bc4 {[%emt 0:00:06]} e6 {[%emt 0:00:08]} 7. Bb3 {[%emt 0:00:37]} Nbd7 {[%emt 0:00:18]} 8. f4 {[%emt 0:00:06]} Nc5 {[%emt 0:00:19]} 9. f5 {[%emt 0:00:03]} Be7 {[%emt 0:00:26]} 10. Qf3 {[%emt 0:00:49]} O-O {[%emt 0:00:25]} 11. Be3 {[%emt 0:00:58]} Qc7 {[%emt 0:00:39] B86: Sicilian Scheveningen/Najdorf: 6 Bc4, without early ...b5} 12. g4 {[%emt 0:07:57]} b5 $146 {[%emt 0:01:16]} (12... d5 13. exd5 Nxb3 14. axb3 Nxd5 15. Nxd5 Bh4+ 16. Kd2 exd5 17. g5 Re8 {½-½ (41) Danin,A (2540)-Engel,L (2389) Karlsruhe 2018}) 13. g5 {[%emt 0:06:31]} Nfxe4 {[%emt 0:00:41]} 14. Nxe4 {[%emt 0:00:34]} Bb7 {[%emt 0:00:05]} 15. f6 {[%emt 0:00:38]} Bxe4 {[%emt 0:01:44]} 16. fxe7 {[%emt 0:01:15]} Qxe7 {[%emt 0:06:28]} 17. Qf1 {[%emt 0:02:00]} Bxh1 {[%emt 0:01:52]} 18. Qxh1 {[%emt 0:00:27]} Rac8 {[%emt 0:06:29]} 19. O-O-O {[%emt 0:04:46]} Qc7 {[%emt 0:02:10]} 20. Qg2 {[%emt 0:02:47]} d5 {[%emt 0:02:43]} 21. Kb1 $11 {[%emt 0:02:09]} Rfe8 {[%emt 0:18:48]} 22. Bc1 {[%emt 0:05:34]} Qd7 {[%emt 0:07:01]} 23. Qe2 {[%emt 0:15:55]} b4 {[%emt 0:25:45]} 24. h4 {[%emt 0:03:20]} a5 {[%emt 0:05:17]} 25. Qb5 {[%emt 0:06:43]} Qxb5 {[%emt 0:05:36]} 26. Nxb5 {[%emt 0:00:06]} Rb8 {[%emt 0:01:03]} 27. Nd6 {[%emt 0:14:26]} Red8 {[%emt 0:01:20]} 28. Bf4 {[%emt 0:01:47]} a4 {[%emt 0:01:02]} 29. Nf5 {[%emt 0:09:37]} axb3 {[%emt 0:03:41]} 30. Ne7+ {[%emt 0:00:44]} Kf8 {[%emt 0:01:46]} 31. Bxb8 {[%emt 0:00:08]} Kxe7 {[%emt 0:01:35]} 32. Bh2 {[%emt 0:01:35]} bxa2+ {[%emt 0:00:39]} 33. Kxa2 {[%emt 0:00:05]} f6 {[%emt 0:02:40]} 34. gxf6+ {[%emt 0:00:53]} gxf6 {[%emt 0:00:01]} 35. Rd4 {[%emt 0:00:38]} Ra8+ {[%emt 0:02:27]} 36. Kb1 {[%emt 0:00:08]} b3 {[%emt 0:01:15]} 37. cxb3 {[%emt 0:00:42]} Nxb3 {[%emt 0:00:20]} 38. Rg4 {[%emt 0:05:57]} Kf7 {[%emt 0:00:59]} 39. Rb4 {[%emt 0:00:08]} Nc5 {[%emt 0:00:39]} 40. Bg1 {[%emt 0:00:00]} Ne4 {[%emt 0:00:47]} 41. Rb7+ {[%emt 0:02:48]} Kg6 {[%emt 0:00:39]} 42. h5+ {[%emt 0:00:22]} Kxh5 {[%emt 0:02:33]} 43. Rxh7+ {[%emt 0:01:45]} Kg4 {[%emt 0:00:25]} 44. Ba7 {[%emt 0:01:35]} e5 {[%emt 0:01:32]} 45. b4 {[%emt 0:03:21]} d4 {[%emt 0:03:27]} 46. Kc2 {[%emt 0:00:20]} Nc3 {[%emt 0:03:22]} 47. Kb3 {[%emt 0:08:50]} f5 {[%emt 0:06:00]} 48. Rc7 {[%emt 0:08:36]} f4 {[%emt 0:02:55]} 49. Kc4 {[%emt 0:01:20]} f3 {[%emt 0:01:16]} 50. Bc5 {[%emt 0:04:08]} f2 {[%emt 0:02:57]} 51. Rf7 {[%emt 0:00:17]} Kg3 {[%emt 0:01:09]} 52. b5 {[%emt 0:00:05]} Nxb5 {[%emt 0:01:37]} 53. Kxb5 {[%emt 0:00:08]} Kg2 {[%emt 0:00:26]} 54. Rg7+ {[%emt 0:00:24]} Kf3 {[%emt 0:00:10]} 55. Rf7+ {[%emt 0:00:22]} Ke2 {[%emt 0:00:08]} 56. Kc4 {[%emt 0:01:04]} f1=Q {[%emt 0:00:42]} 57. Rxf1 {[%emt 0:00:06]} Kxf1 {[%emt 0:00:04]} 58. Bxd4 {[%emt 0:00:15]} Ra4+ {[%emt 0:00:12]} 59. Kc3 {[%emt 0:00:07]} Rxd4 {[%emt 0:00:11]} 60. Kc2 {[%emt 0:00:09]} e4 {[%emt 0:00:04]} 61. Kc3 {[%emt 0:00:24]} Rd8 {[%emt 0:00:16]} 62. Kc2 {[%emt 0:00:30]} e3 {[%emt 0:00:05]} 63. Kc1 {[%emt 0:00:05]} e2 {[%emt 0:00:04]} 64. Kc2 {[%emt 0:00:03]} e1=Q {[%emt 0:00:05]} 65. Kb2 {[%emt 0:00:04]} Qb4+ {[%emt 0:00:14]} 66. Kc2 {[%emt 0:00:11]} Rd2+ {[%emt 0:00:04]} 67. Kc1 {[%emt 0:00:03]} Qb2# {[%emt 0:00:03]} 0-1